[Event "Early-Titled-Tuesday-Blitz-May-28-2024"]
[Site "Chess.com"]
[Date "2024.05.28"]
[Round "4"]
[White "kingofthenil"]
[Black "Timerkhanov"]
[Result "0-1"]
[WhiteElo "2932"]
[BlackElo "2734"]
[TimeControl "180+1"]
[EndTime "8:39:06 PDT"]
[Termination "Timerkhanov won on time"]

1. Nf3 {[%clk 0:03:00.9]} 1... d5 {[%clk 0:03:00.1]} 2. e3 {[%clk 0:03:00.5]}
2... Nf6 {[%clk 0:03:00.4]} 3. c4 {[%clk 0:03:00.9]} 3... c6 {[%clk 0:03:01]} 4.
Nc3 {[%clk 0:02:57.1]} 4... a6 {[%clk 0:03:01.3]} 5. Qc2 {[%clk 0:02:53.4]} 5...
Bg4 {[%clk 0:02:56.4]} 6. Ne5 {[%clk 0:02:50.8]} 6... Bh5 {[%clk 0:02:56.1]} 7.
cxd5 {[%clk 0:02:19.9]} 7... cxd5 {[%clk 0:02:55.1]} 8. g4 {[%clk 0:02:20]} 8...
Bg6 {[%clk 0:02:42.6]} 9. Qb3 {[%clk 0:02:09.2]} 9... Nbd7 {[%clk 0:02:32.3]}
10. Nxg6 {[%clk 0:02:06.3]} 10... hxg6 {[%clk 0:02:33.2]} 11. g5 {[%clk
0:01:55.8]} 11... Ne4 {[%clk 0:02:33.2]} 12. Qxd5 {[%clk 0:01:52.9]} 12... Nxc3
{[%clk 0:02:30.3]} 13. bxc3 {[%clk 0:01:52.2]} 13... Rb8 {[%clk 0:02:28.9]} 14.
h4 {[%clk 0:01:36.3]} 14... e6 {[%clk 0:02:26.9]} 15. Qf3 {[%clk 0:01:32.5]}
15... Ne5 {[%clk 0:02:22.7]} 16. Qe4 {[%clk 0:01:32.5]} 16... Bd6 {[%clk
0:02:13.4]} 17. d4 {[%clk 0:01:31.7]} 17... Nc6 {[%clk 0:02:02.5]} 18. Rb1
{[%clk 0:01:12.7]} 18... Qa5 {[%clk 0:02:02.4]} 19. Bd2 {[%clk 0:01:03.8]} 19...
Qxa2 {[%clk 0:02:02.3]} 20. Bg2 {[%clk 0:00:55.9]} 20... Na5 {[%clk 0:01:50.6]}
21. Bc1 {[%clk 0:00:33.5]} 21... Rc8 {[%clk 0:01:40.1]} 22. O-O {[%clk
0:00:27.8]} 22... Rxc3 {[%clk 0:01:30.7]} 23. Bb2 {[%clk 0:00:20.5]} 23... Rc8
{[%clk 0:01:25.1]} 24. Rfd1 {[%clk 0:00:03.9]} 24... O-O {[%clk 0:01:24]} 25. d5
{[%clk 0:00:01.9]} 25... Nc4 {[%clk 0:01:18.2]} 26. dxe6 {[%clk 0:00:01.8]}
26... Nxb2 {[%clk 0:01:10.1]} 27. exf7+ {[%clk 0:00:02.4]} 27... Rxf7 {[%clk
0:01:02]} 28. Rxd6 {[%clk 0:00:02.9]} 28... Nc4 {[%clk 0:01:00.4]} 29. Rxg6
{[%clk 0:00:02.1]} 29... Qxf2+ {[%clk 0:00:59.7]} 30. Kh2 {[%clk 0:00:03]} 30...
Nd2 {[%clk 0:00:58.5]} 31. Qe6 {[%clk 0:00:02.2]} 31... Rc2 {[%clk 0:00:52.4]}
32. Qe8+ {[%clk 0:00:01.9]} 32... Kh7 {[%clk 0:00:52.1]} 33. Rh6+ {[%clk
0:00:01.8]} 33... gxh6 {[%clk 0:00:52]} 34. g6+ {[%clk 0:00:01.9]} 34... Kxg6
{[%clk 0:00:46.5]} 35. Qg8+ {[%clk 0:00:01.8]} 35... Kh5 {[%clk 0:00:45.1]} 0-1

[Event "Early-Titled-Tuesday-Blitz-May-28-2024"]
[Site "Chess.com"]
[Date "2024.05.28"]
[Round "4"]
[White "JM05C"]
[Black "ploxoi"]
[Result "1-0"]
[WhiteElo "2546"]
[BlackElo "2369"]
[TimeControl "180+1"]
[EndTime "8:39:08 PDT"]
[Termination "JM05C won by resignation"]

1. e4 {[%clk 0:03:00.9]} 1... c5 {[%clk 0:02:59.4]} 2. Nf3 {[%clk 0:03:00.1]}
2... e6 {[%clk 0:02:59.7]} 3. d4 {[%clk 0:02:59.9]} 3... cxd4 {[%clk 0:03:00.6]}
4. Nxd4 {[%clk 0:03:00.3]} 4... Nc6 {[%clk 0:03:01.2]} 5. Nc3 {[%clk 0:02:59.9]}
5... Qc7 {[%clk 0:03:01]} 6. a3 {[%clk 0:02:59.1]} 6... Nf6 {[%clk 0:03:00.6]}
7. Be3 {[%clk 0:02:55.9]} 7... a6 {[%clk 0:03:00.4]} 8. f4 {[%clk 0:02:55.9]}
8... d6 {[%clk 0:03:00.4]} 9. Qf3 {[%clk 0:02:55.3]} 9... Be7 {[%clk 0:02:54.8]}
10. O-O-O {[%clk 0:02:54.5]} 10... Nxd4 {[%clk 0:02:54.7]} 11. Bxd4 {[%clk
0:02:55.4]} 11... b5 {[%clk 0:02:55.2]} 12. e5 {[%clk 0:02:43.6]} 12... Bb7
{[%clk 0:02:54.3]} 13. Qg3 {[%clk 0:02:43.6]} 13... dxe5 {[%clk 0:02:31.4]} 14.
Bxe5 {[%clk 0:02:38.2]} 14... Qb6 {[%clk 0:02:30.9]} 15. Bd3 {[%clk 0:02:17.6]}
15... O-O {[%clk 0:01:55.3]} 16. Qh3 {[%clk 0:02:09.3]} 16... g6 {[%clk
0:01:51]} 17. Qh4 {[%clk 0:02:07.8]} 17... Kg7 {[%clk 0:01:27.6]} 18. Rhe1
{[%clk 0:02:04.7]} 18... h5 {[%clk 0:01:24.3]} 19. f5 {[%clk 0:01:57.3]} 19...
exf5 {[%clk 0:01:15.3]} 20. Bd4 {[%clk 0:01:54.9]} 20... Qd8 {[%clk 0:01:07.4]}
21. Bxf5 {[%clk 0:01:45.3]} 21... Kg8 {[%clk 0:00:45.5]} 22. Rxe7 {[%clk
0:01:20.1]} 22... Qxe7 {[%clk 0:00:44.4]} 23. Bxf6 {[%clk 0:01:20.7]} 23... Qe3+
{[%clk 0:00:42.7]} 24. Kb1 {[%clk 0:01:21.2]} 24... Rfe8 {[%clk 0:00:10.6]} 25.
Bd3 {[%clk 0:01:13]} 25... Rac8 {[%clk 0:00:09.8]} 26. Bd4 {[%clk 0:01:04.6]}
26... Qe7 {[%clk 0:00:10]} 27. Qf4 {[%clk 0:01:02.3]} 27... Rcd8 {[%clk
0:00:06.4]} 28. Bf6 {[%clk 0:00:59.9]} 28... Qd6 {[%clk 0:00:05.2]} 29. Qg5
{[%clk 0:00:52.5]} 29... Rd7 {[%clk 0:00:05.2]} 30. Bxg6 {[%clk 0:00:41.9]}
30... Qxd1+ {[%clk 0:00:05.2]} 31. Nxd1 {[%clk 0:00:42]} 31... Rxd1+ {[%clk
0:00:06.1]} 32. Ka2 {[%clk 0:00:41.8]} 32... Bd5+ {[%clk 0:00:06.4]} 33. b3
{[%clk 0:00:41.3]} 33... Bxb3+ {[%clk 0:00:05.3]} 34. Kxb3 {[%clk 0:00:36.8]}
1-0

[Event "Early-Titled-Tuesday-Blitz-May-28-2024"]
[Site "Chess.com"]
[Date "2024.05.28"]
[Round "4"]
[White "Andrii_Prydun"]
[Black "Fraler15"]
[Result "0-1"]
[WhiteElo "2392"]
[BlackElo "2194"]
[TimeControl "180+1"]
[EndTime "8:39:15 PDT"]
[Termination "Fraler15 won by resignation"]

1. e4 {[%clk 0:02:57]} 1... c5 {[%clk 0:02:59.3]} 2. Nf3 {[%clk 0:02:55.6]} 2...
e6 {[%clk 0:02:59.8]} 3. c3 {[%clk 0:02:54.8]} 3... d5 {[%clk 0:02:58.7]} 4.
exd5 {[%clk 0:02:54.3]} 4... Qxd5 {[%clk 0:02:56.9]} 5. d4 {[%clk 0:02:54.4]}
5... Nf6 {[%clk 0:02:55.7]} 6. Na3 {[%clk 0:02:54.2]} 6... Nc6 {[%clk
0:02:53.8]} 7. Nb5 {[%clk 0:02:52.8]} 7... Qd8 {[%clk 0:02:52.2]} 8. Bf4 {[%clk
0:02:51]} 8... Nd5 {[%clk 0:02:51.1]} 9. Bg3 {[%clk 0:02:50.9]} 9... a6 {[%clk
0:02:50.6]} 10. Na3 {[%clk 0:02:50.9]} 10... cxd4 {[%clk 0:02:45.5]} 11. Nxd4
{[%clk 0:02:51.5]} 11... Bxa3 {[%clk 0:02:38.3]} 12. Nxc6 {[%clk 0:02:49.6]}
12... bxc6 {[%clk 0:02:37.8]} 13. bxa3 {[%clk 0:02:49.9]} 13... Qa5 {[%clk
0:02:33.8]} 14. Qb3 {[%clk 0:02:36.6]} 14... Qxc3+ {[%clk 0:02:29.3]} 15. Qxc3
{[%clk 0:02:34.9]} 15... Nxc3 {[%clk 0:02:29.9]} 16. Be5 {[%clk 0:02:32.1]}
16... Nd5 {[%clk 0:02:29.9]} 17. Bxg7 {[%clk 0:02:32.1]} 17... Rg8 {[%clk
0:02:30.3]} 18. Be5 {[%clk 0:02:30.9]} 18... f6 {[%clk 0:02:29.5]} 19. Bb2
{[%clk 0:02:28.7]} 19... Rb8 {[%clk 0:02:25]} 20. Bc1 {[%clk 0:02:25.6]} 20...
Rg4 {[%clk 0:01:38.8]} 21. f3 {[%clk 0:02:19.8]} 21... Ra4 {[%clk 0:01:37.5]}
22. Bd3 {[%clk 0:02:18.6]} 22... h5 {[%clk 0:01:32.5]} 23. O-O {[%clk
0:02:17.2]} 23... Kf7 {[%clk 0:01:27]} 24. Re1 {[%clk 0:02:16.9]} 24... e5
{[%clk 0:01:23.3]} 25. Bc2 {[%clk 0:01:55.5]} 25... Ra5 {[%clk 0:01:12.1]} 26.
Kf2 {[%clk 0:01:27.3]} 26... Be6 {[%clk 0:01:10.8]} 27. Bd3 {[%clk 0:01:10.7]}
27... Nf4 {[%clk 0:01:07.6]} 28. Bf1 {[%clk 0:01:07.3]} 28... Rc5 {[%clk
0:01:03]} 29. Bxa6 {[%clk 0:00:38.3]} 29... Rc2+ {[%clk 0:01:00.4]} 30. Be2
{[%clk 0:00:30.1]} 30... Nd3+ {[%clk 0:00:58.1]} 31. Kf1 {[%clk 0:00:28.8]}
31... Nxe1 {[%clk 0:00:55.2]} 32. Kxe1 {[%clk 0:00:29.7]} 32... Bc4 {[%clk
0:00:52.7]} 33. Bxc4+ {[%clk 0:00:19.7]} 33... Rxc4 {[%clk 0:00:52.6]} 34. Bd2
{[%clk 0:00:18.7]} 34... Rb2 {[%clk 0:00:50.4]} 35. Ke2 {[%clk 0:00:15.4]} 35...
Rcc2 {[%clk 0:00:49.7]} 36. Rd1 {[%clk 0:00:15.2]} 36... Rxa2 {[%clk 0:00:49.8]}
37. g3 {[%clk 0:00:15]} 37... Rxa3 {[%clk 0:00:49]} 38. f4 {[%clk 0:00:13.3]}
38... e4 {[%clk 0:00:47.6]} 39. Ke1 {[%clk 0:00:12.6]} 39... f5 {[%clk
0:00:46.7]} 40. Ke2 {[%clk 0:00:05.5]} 40... e3 {[%clk 0:00:45.5]} 0-1

[Event "Early-Titled-Tuesday-Blitz-May-28-2024"]
[Site "Chess.com"]
[Date "2024.05.28"]
[Round "4"]
[White "LileKoridze"]
[Black "Masterisback04"]
[Result "1-0"]
[WhiteElo "2437"]
[BlackElo "2114"]
[TimeControl "180+1"]
[EndTime "8:39:16 PDT"]
[Termination "LileKoridze won on time"]

1. d4 {[%clk 0:03:00.9]} 1... Nf6 {[%clk 0:02:59.8]} 2. c4 {[%clk 0:02:53.8]}
2... g6 {[%clk 0:02:58]} 3. Nc3 {[%clk 0:02:51]} 3... Bg7 {[%clk 0:02:58.1]} 4.
e4 {[%clk 0:02:50.5]} 4... d6 {[%clk 0:02:57.9]} 5. Nf3 {[%clk 0:02:49.4]} 5...
O-O {[%clk 0:02:58.2]} 6. Be2 {[%clk 0:02:49.5]} 6... e5 {[%clk 0:02:58.3]} 7.
d5 {[%clk 0:02:49.1]} 7... a5 {[%clk 0:02:57.6]} 8. Bg5 {[%clk 0:02:48.4]} 8...
Bd7 {[%clk 0:02:53.2]} 9. O-O {[%clk 0:02:41.8]} 9... Na6 {[%clk 0:02:52.6]} 10.
a3 {[%clk 0:02:37.6]} 10... Qe8 {[%clk 0:02:52.3]} 11. h3 {[%clk 0:02:32.7]}
11... Nc5 {[%clk 0:02:44.8]} 12. Qc2 {[%clk 0:02:31.7]} 12... a4 {[%clk
0:02:44.9]} 13. Be3 {[%clk 0:02:31.3]} 13... Nb3 {[%clk 0:02:40.8]} 14. Rad1
{[%clk 0:02:30.6]} 14... Nh5 {[%clk 0:02:41]} 15. Nd2 {[%clk 0:02:19]} 15... Nd4
{[%clk 0:02:39.9]} 16. Bxd4 {[%clk 0:02:15.9]} 16... exd4 {[%clk 0:02:40.8]} 17.
Nb5 {[%clk 0:02:16.2]} 17... Bxb5 {[%clk 0:02:32.4]} 18. cxb5 {[%clk 0:02:15.7]}
18... Nf4 {[%clk 0:02:31.9]} 19. Nf3 {[%clk 0:02:05.8]} 19... f5 {[%clk
0:02:16]} 20. Bc4 {[%clk 0:01:51.7]} 20... d3 {[%clk 0:01:50.2]} 21. Bxd3 {[%clk
0:01:40.3]} 21... fxe4 {[%clk 0:01:49.9]} 22. Bxe4 {[%clk 0:01:39.1]} 22... Qf7
{[%clk 0:01:43.6]} 23. Ng5 {[%clk 0:01:33.1]} 23... Qf6 {[%clk 0:01:37.7]} 24.
Ne6 {[%clk 0:01:32.7]} 24... Nxe6 {[%clk 0:01:16.7]} 25. dxe6 {[%clk 0:01:32.2]}
25... Qe7 {[%clk 0:01:15.6]} 26. Bxb7 {[%clk 0:01:30.3]} 26... Rab8 {[%clk
0:01:14.4]} 27. Bc6 {[%clk 0:01:29]} 27... Kh8 {[%clk 0:01:10.7]} 28. Bd7 {[%clk
0:01:02.2]} 28... Be5 {[%clk 0:01:09.8]} 29. Qxa4 {[%clk 0:00:52.5]} 29... Rf4
{[%clk 0:01:04.8]} 30. Qa7 {[%clk 0:00:50.4]} 30... Rbf8 {[%clk 0:01:03]} 31.
Qxc7 {[%clk 0:00:50.5]} 31... Qh4 {[%clk 0:00:32]} 32. Qc2 {[%clk 0:00:37.4]}
32... Bd4 {[%clk 0:00:03.5]} 33. Rxd4 {[%clk 0:00:33.4]} 33... Rxd4 {[%clk
0:00:03.3]} 34. Qc3 {[%clk 0:00:33.2]} 1-0

[Event "Early-Titled-Tuesday-Blitz-May-28-2024"]
[Site "Chess.com"]
[Date "2024.05.28"]
[Round "4"]
[White "penguingm1"]
[Black "JonasEilenberg"]
[Result "1-0"]
[WhiteElo "2967"]
[BlackElo "2606"]
[TimeControl "180+1"]
[EndTime "8:39:18 PDT"]
[Termination "penguingm1 won on time"]

1. d4 {[%clk 0:03:00.9]} 1... d5 {[%clk 0:02:59.2]} 2. Bf4 {[%clk 0:03:00.5]}
2... Nf6 {[%clk 0:02:58.6]} 3. e3 {[%clk 0:03:00.9]} 3... c5 {[%clk 0:02:58.1]}
4. Nc3 {[%clk 0:02:58.7]} 4... a6 {[%clk 0:02:49]} 5. dxc5 {[%clk 0:02:58.8]}
5... Nc6 {[%clk 0:02:46.4]} 6. a3 {[%clk 0:02:59.2]} 6... e5 {[%clk 0:02:45.3]}
7. Bg5 {[%clk 0:02:59.4]} 7... d4 {[%clk 0:02:35.3]} 8. exd4 {[%clk 0:02:27.1]}
8... Nxd4 {[%clk 0:02:35.6]} 9. b4 {[%clk 0:01:50.7]} 9... h6 {[%clk 0:02:04.1]}
10. Bxf6 {[%clk 0:01:35]} 10... Qxf6 {[%clk 0:01:48.7]} 11. Nd5 {[%clk
0:01:34.5]} 11... Qc6 {[%clk 0:01:49.2]} 12. Nb6 {[%clk 0:01:32.8]} 12... Bf5
{[%clk 0:01:48.6]} 13. Nxa8 {[%clk 0:00:22.3]} 13... Nxc2+ {[%clk 0:01:07.9]}
14. Kd2 {[%clk 0:00:22.4]} 14... Nxa1 {[%clk 0:00:50.5]} 15. Qxa1 {[%clk
0:00:21.3]} 15... Be7 {[%clk 0:00:26.1]} 16. Qxe5 {[%clk 0:00:18]} 16... Qd7+
{[%clk 0:00:22.5]} 17. Kc1 {[%clk 0:00:12.9]} 17... O-O {[%clk 0:00:11.4]} 18.
Nb6 {[%clk 0:00:12]} 18... Bg5+ {[%clk 0:00:06.3]} 19. f4 {[%clk 0:00:11.7]}
19... Bxf4+ {[%clk 0:00:07]} 20. Qxf4 {[%clk 0:00:11.6]} 20... Qe6 {[%clk
0:00:07.9]} 21. Nf3 {[%clk 0:00:06.4]} 21... Rd8 {[%clk 0:00:06.5]} 22. Bc4
{[%clk 0:00:06.6]} 22... Qf6 {[%clk 0:00:05.3]} 23. Ne5 {[%clk 0:00:06.1]} 23...
g5 {[%clk 0:00:04.8]} 24. Qe3 {[%clk 0:00:06.2]} 24... Re8 {[%clk 0:00:02.1]}
25. Re1 {[%clk 0:00:04.3]} 1-0

[Event "Early-Titled-Tuesday-Blitz-May-28-2024"]
[Site "Chess.com"]
[Date "2024.05.28"]
[Round "4"]
[White "ChessAdvanceUSA"]
[Black "soloderisas"]
[Result "0-1"]
[WhiteElo "2448"]
[BlackElo "2635"]
[TimeControl "180+1"]
[EndTime "8:39:20 PDT"]
[Termination "soloderisas won by resignation"]

1. Nc3 {[%clk 0:02:55.9]} 1... d5 {[%clk 0:02:58.1]} 2. d4 {[%clk 0:02:55.7]}
2... Bf5 {[%clk 0:02:57.5]} 3. e4 {[%clk 0:02:54.7]} 3... Bxe4 {[%clk 0:02:53]}
4. Nxe4 {[%clk 0:02:54.4]} 4... dxe4 {[%clk 0:02:53.3]} 5. Bc4 {[%clk
0:02:52.7]} 5... e6 {[%clk 0:02:51.6]} 6. c3 {[%clk 0:02:37.5]} 6... Nd7 {[%clk
0:02:49.3]} 7. Qe2 {[%clk 0:02:32.7]} 7... Ngf6 {[%clk 0:02:47.8]} 8. Bg5 {[%clk
0:02:32.4]} 8... Be7 {[%clk 0:02:48.3]} 9. O-O-O {[%clk 0:02:31.4]} 9... h6
{[%clk 0:02:46]} 10. Be3 {[%clk 0:02:25.4]} 10... c6 {[%clk 0:02:39.4]} 11. f3
{[%clk 0:02:25.4]} 11... exf3 {[%clk 0:02:37.3]} 12. Nxf3 {[%clk 0:02:26.3]}
12... Qa5 {[%clk 0:02:32.2]} 13. g4 {[%clk 0:02:20.4]} 13... O-O-O {[%clk
0:02:21.9]} 14. Bf4 {[%clk 0:02:14.2]} 14... Nd5 {[%clk 0:02:17.9]} 15. Bg3
{[%clk 0:02:09.8]} 15... N7b6 {[%clk 0:02:10.9]} 16. Bb3 {[%clk 0:02:01.9]}
16... Bd6 {[%clk 0:01:51.2]} 17. Ne5 {[%clk 0:02:00.5]} 17... Rhf8 {[%clk
0:01:37.3]} 18. Nxf7 {[%clk 0:01:47.4]} 18... Bxg3 {[%clk 0:01:26.6]} 19. Qxe6+
{[%clk 0:01:33.7]} 19... Rd7 {[%clk 0:01:26.4]} 20. hxg3 {[%clk 0:00:59.9]}
20... Rxf7 {[%clk 0:01:25.8]} 21. Rhf1 {[%clk 0:00:59.9]} 21... Re7 {[%clk
0:01:16.7]} 22. Rf8+ {[%clk 0:00:58.9]} 22... Kc7 {[%clk 0:01:16.8]} 23. Qf5
{[%clk 0:00:53.9]} 23... Nc8 {[%clk 0:01:02.3]} 24. c4 {[%clk 0:00:49.1]} 24...
Nd6 {[%clk 0:01:02]} 25. Qh5 {[%clk 0:00:42.9]} 25... g6 {[%clk 0:01:01.1]} 26.
Qxh6 {[%clk 0:00:41.8]} 26... Ne3 {[%clk 0:00:56.8]} 27. Qh8 {[%clk 0:00:36.1]}
27... Nxd1 {[%clk 0:00:52.9]} 28. c5 {[%clk 0:00:36.1]} 28... Ne3 {[%clk
0:00:38]} 29. cxd6+ {[%clk 0:00:29.6]} 29... Kb6 {[%clk 0:00:29.3]} 30. Qh1
{[%clk 0:00:24.8]} 30... Rxd6 {[%clk 0:00:26.1]} 31. Rf2 {[%clk 0:00:17.4]}
31... Rxd4 {[%clk 0:00:24.6]} 32. a3 {[%clk 0:00:16.1]} 32... Nxg4 {[%clk
0:00:21.2]} 33. Rf1 {[%clk 0:00:13]} 33... Qd2+ {[%clk 0:00:19.2]} 34. Kb1
{[%clk 0:00:13]} 34... Re2 {[%clk 0:00:19.6]} 0-1

[Event "Early-Titled-Tuesday-Blitz-May-28-2024"]
[Site "Chess.com"]
[Date "2024.05.28"]
[Round "4"]
[White "DonJuanEGenaro"]
[Black "IMRosen"]
[Result "0-1"]
[WhiteElo "2004"]
[BlackElo "2742"]
[TimeControl "180+1"]
[EndTime "8:39:25 PDT"]
[Termination "IMRosen won on time"]

1. d4 {[%clk 0:02:41.2]} 1... d5 {[%clk 0:02:55.1]} 2. Nf3 {[%clk 0:02:40.6]}
2... Nf6 {[%clk 0:02:54.2]} 3. c4 {[%clk 0:02:40.4]} 3... e6 {[%clk 0:02:54.2]}
4. e3 {[%clk 0:02:39.4]} 4... a6 {[%clk 0:02:52.6]} 5. a3 {[%clk 0:02:37.4]}
5... b6 {[%clk 0:02:51.6]} 6. Nc3 {[%clk 0:02:36.7]} 6... Bb7 {[%clk 0:02:52.2]}
7. cxd5 {[%clk 0:02:36.5]} 7... exd5 {[%clk 0:02:52.5]} 8. Ne5 {[%clk
0:02:31.4]} 8... Nbd7 {[%clk 0:02:50.4]} 9. f4 {[%clk 0:02:31]} 9... c5 {[%clk
0:02:49.2]} 10. Be2 {[%clk 0:02:29.4]} 10... Bd6 {[%clk 0:02:48.6]} 11. O-O
{[%clk 0:02:28]} 11... O-O {[%clk 0:02:49.3]} 12. Bf3 {[%clk 0:02:26.1]} 12...
Ne4 {[%clk 0:02:28.9]} 13. Nxe4 {[%clk 0:02:24.1]} 13... dxe4 {[%clk 0:02:28.9]}
14. Bg4 {[%clk 0:02:23.5]} 14... Nf6 {[%clk 0:02:23.7]} 15. Be2 {[%clk
0:02:19.1]} 15... Rc8 {[%clk 0:02:22.9]} 16. Bd2 {[%clk 0:02:09.9]} 16... Qe7
{[%clk 0:02:22.9]} 17. Bc3 {[%clk 0:02:09.3]} 17... Rfd8 {[%clk 0:02:23.5]} 18.
Qb3 {[%clk 0:02:05.3]} 18... b5 {[%clk 0:02:20.5]} 19. Rfd1 {[%clk 0:01:57.3]}
19... c4 {[%clk 0:02:05.9]} 20. Qc2 {[%clk 0:01:52.2]} 20... Nd5 {[%clk
0:02:06.5]} 21. Bd2 {[%clk 0:01:36.9]} 21... f6 {[%clk 0:01:55]} 22. Ng4 {[%clk
0:01:22.7]} 22... h5 {[%clk 0:01:54.7]} 23. Nf2 {[%clk 0:01:22.3]} 23... Nxf4
{[%clk 0:01:55.1]} 24. Bc3 {[%clk 0:01:11.4]} 24... Nd3 {[%clk 0:01:36.8]} 25.
Bxh5 {[%clk 0:01:02]} 25... f5 {[%clk 0:01:27]} 26. Nh3 {[%clk 0:00:40.9]} 26...
Qh4 {[%clk 0:01:19.7]} 27. Qe2 {[%clk 0:00:40]} 27... Bd5 {[%clk 0:01:02.1]} 28.
Rf1 {[%clk 0:00:38.8]} 28... Rf8 {[%clk 0:00:58.5]} 29. Bb4 {[%clk 0:00:19.9]}
29... Rcd8 {[%clk 0:00:46.1]} 30. Bxd6 {[%clk 0:00:18.5]} 30... Rxd6 {[%clk
0:00:47]} 31. Nf4 {[%clk 0:00:07.1]} 31... Rh6 {[%clk 0:00:27.7]} 32. Nxd5
{[%clk 0:00:04]} 32... Rxh5 {[%clk 0:00:27.6]} 33. g3 {[%clk 0:00:04]} 33... Qg5
{[%clk 0:00:19.2]} 0-1

[Event "Early-Titled-Tuesday-Blitz-May-28-2024"]
[Site "Chess.com"]
[Date "2024.05.28"]
[Round "4"]
[White "frenchpin"]
[Black "N_I_Chess"]
[Result "0-1"]
[WhiteElo "2422"]
[BlackElo "2240"]
[TimeControl "180+1"]
[EndTime "8:39:26 PDT"]
[Termination "N_I_Chess won by resignation"]

1. g3 {[%clk 0:02:51.3]} 1... Nf6 {[%clk 0:03:00.9]} 2. Bg2 {[%clk 0:02:51.2]}
2... d5 {[%clk 0:02:57.2]} 3. c4 {[%clk 0:02:49.3]} 3... c6 {[%clk 0:02:52]} 4.
b3 {[%clk 0:02:43.1]} 4... e5 {[%clk 0:02:49.3]} 5. Bb2 {[%clk 0:02:42.8]} 5...
Bd6 {[%clk 0:02:45.8]} 6. cxd5 {[%clk 0:02:38]} 6... cxd5 {[%clk 0:02:45.1]} 7.
Nc3 {[%clk 0:02:38.5]} 7... Be6 {[%clk 0:02:34.9]} 8. Nb5 {[%clk 0:02:34.9]}
8... O-O {[%clk 0:02:32.7]} 9. Qc1 {[%clk 0:02:15.1]} 9... Nc6 {[%clk
0:02:29.7]} 10. Nxd6 {[%clk 0:02:13.1]} 10... Qxd6 {[%clk 0:02:30.6]} 11. a3
{[%clk 0:01:42.3]} 11... Rac8 {[%clk 0:02:27.2]} 12. Qb1 {[%clk 0:01:42.4]}
12... d4 {[%clk 0:02:07.3]} 13. d3 {[%clk 0:01:37]} 13... Bxb3 {[%clk
0:02:04.3]} 14. Nf3 {[%clk 0:01:33]} 14... Na5 {[%clk 0:01:56.5]} 15. O-O {[%clk
0:01:27.8]} 15... Bc2 {[%clk 0:01:54.8]} 16. Qa2 {[%clk 0:01:25.2]} 16... Nb3
{[%clk 0:01:54.2]} 17. Rae1 {[%clk 0:01:23]} 17... a5 {[%clk 0:01:49.5]} 18. Nh4
{[%clk 0:01:14.9]} 18... a4 {[%clk 0:01:36.3]} 19. Bxb7 {[%clk 0:01:01.4]} 19...
Rc7 {[%clk 0:01:35.8]} 20. Bf3 {[%clk 0:00:54.7]} 20... Nd2 {[%clk 0:01:30]} 21.
Nf5 {[%clk 0:00:43.8]} 21... Qd7 {[%clk 0:01:25.4]} 22. g4 {[%clk 0:00:39.6]}
22... Nxf3+ {[%clk 0:01:09.3]} 23. exf3 {[%clk 0:00:37.4]} 23... Bxd3 {[%clk
0:01:06]} 24. Rxe5 {[%clk 0:00:37.2]} 24... Bxf1 {[%clk 0:01:03.1]} 25. Kxf1
{[%clk 0:00:34.4]} 25... Rc2 {[%clk 0:00:57]} 26. Qb1 {[%clk 0:00:17.8]} 26...
d3 {[%clk 0:00:43.4]} 27. Re7 {[%clk 0:00:10]} 27... Qb5 {[%clk 0:00:40.2]} 28.
g5 {[%clk 0:00:07.8]} 28... d2+ {[%clk 0:00:33.1]} 29. Kg2 {[%clk 0:00:05.7]}
29... Qxb2 {[%clk 0:00:30.8]} 30. Qd1 {[%clk 0:00:02.7]} 30... Qc1 {[%clk
0:00:23.6]} 31. Qe2 {[%clk 0:00:01.9]} 31... d1=Q {[%clk 0:00:22.3]} 32. gxf6
{[%clk 0:00:01.9]} 32... Qxe2 {[%clk 0:00:18.9]} 0-1

[Event "Early-Titled-Tuesday-Blitz-May-28-2024"]
[Site "Chess.com"]
[Date "2024.05.28"]
[Round "4"]
[White "Lady_Nika"]
[Black "GianmarcoVaR"]
[Result "0-1"]
[WhiteElo "2505"]
[BlackElo "2725"]
[TimeControl "180+1"]
[EndTime "8:39:27 PDT"]
[Termination "GianmarcoVaR won on time"]

1. e4 {[%clk 0:02:53.9]} 1... c5 {[%clk 0:02:53.7]} 2. Nf3 {[%clk 0:02:51.8]}
2... d6 {[%clk 0:02:50.7]} 3. d4 {[%clk 0:02:51.5]} 3... cxd4 {[%clk 0:02:51.1]}
4. Nxd4 {[%clk 0:02:52.4]} 4... Nf6 {[%clk 0:02:51.2]} 5. Nc3 {[%clk 0:02:51.7]}
5... a6 {[%clk 0:02:51.2]} 6. Be2 {[%clk 0:02:48.9]} 6... e5 {[%clk 0:02:48.5]}
7. Nb3 {[%clk 0:02:47.7]} 7... Be6 {[%clk 0:02:42.2]} 8. O-O {[%clk 0:02:47.7]}
8... Nbd7 {[%clk 0:02:35.4]} 9. Bg5 {[%clk 0:02:47.4]} 9... Rc8 {[%clk
0:02:33.6]} 10. Qd2 {[%clk 0:02:44.4]} 10... h6 {[%clk 0:02:30.6]} 11. Bxf6
{[%clk 0:02:43.8]} 11... Nxf6 {[%clk 0:02:31.5]} 12. f3 {[%clk 0:02:44]} 12...
Qb6+ {[%clk 0:02:28]} 13. Kh1 {[%clk 0:02:44]} 13... Be7 {[%clk 0:02:24.4]} 14.
Nd5 {[%clk 0:02:44]} 14... Nxd5 {[%clk 0:02:22.4]} 15. exd5 {[%clk 0:02:44.1]}
15... Bd7 {[%clk 0:02:23.2]} 16. c4 {[%clk 0:02:43.5]} 16... O-O {[%clk
0:02:23.3]} 17. f4 {[%clk 0:02:34.6]} 17... exf4 {[%clk 0:02:19.7]} 18. Qxf4
{[%clk 0:02:33.5]} 18... Bf6 {[%clk 0:02:20.3]} 19. Rab1 {[%clk 0:02:28]} 19...
Rfe8 {[%clk 0:02:20.4]} 20. Bg4 {[%clk 0:02:22.3]} 20... Qc7 {[%clk 0:01:49.2]}
21. Bxd7 {[%clk 0:01:51]} 21... Qxd7 {[%clk 0:01:48.9]} 22. Qg3 {[%clk
0:01:44.1]} 22... Be5 {[%clk 0:01:16.5]} 23. Qh4 {[%clk 0:01:40]} 23... b5
{[%clk 0:01:12]} 24. Na5 {[%clk 0:01:29.6]} 24... bxc4 {[%clk 0:01:08.8]} 25.
Nc6 {[%clk 0:01:29.6]} 25... Rxc6 {[%clk 0:01:01.8]} 26. dxc6 {[%clk 0:01:29.1]}
26... Qxc6 {[%clk 0:01:02.7]} 27. Qh5 {[%clk 0:01:14.7]} 27... Re7 {[%clk
0:00:38.5]} 28. Qg4 {[%clk 0:01:13.2]} 28... f6 {[%clk 0:00:34.5]} 29. b3 {[%clk
0:00:48.3]} 29... c3 {[%clk 0:00:32.2]} 30. Qc4+ {[%clk 0:00:47.9]} 30... Qxc4
{[%clk 0:00:31.6]} 31. bxc4 {[%clk 0:00:48.8]} 31... Rc7 {[%clk 0:00:31.7]} 32.
Rb4 {[%clk 0:00:48.8]} 32... a5 {[%clk 0:00:29.5]} 33. Ra4 {[%clk 0:00:42.6]}
33... c2 {[%clk 0:00:28.7]} 34. Rxa5 {[%clk 0:00:17.1]} 34... Rxc4 {[%clk
0:00:26.8]} 35. Rc1 {[%clk 0:00:07.2]} 35... Rd4 {[%clk 0:00:27]} 0-1